[Event "Late-Titled-Tuesday-Blitz-March-26-2024"]
[Site "Chess.com"]
[Date "2024.03.26"]
[Round "7"]
[White "Iball95"]
[Black "dropstoneDP"]
[Result "0-1"]
[WhiteElo "2873"]
[BlackElo "3008"]
[TimeControl "180+1"]
[EndTime "15:15:49 PDT"]
[Termination "dropstoneDP won by resignation"]

1. e4 {[%clk 0:02:59.9]} 1... e5 {[%clk 0:03:00.1]} 2. Nf3 {[%clk 0:03:00.8]}
2... Nf6 {[%clk 0:03:00.5]} 3. Nc3 {[%clk 0:03:01.5]} 3... Nc6 {[%clk
0:03:00.4]} 4. Bb5 {[%clk 0:03:01.6]} 4... Nd4 {[%clk 0:03:00.7]} 5. Nxd4 {[%clk
0:03:02.1]} 5... exd4 {[%clk 0:03:01.4]} 6. e5 {[%clk 0:03:03]} 6... dxc3 {[%clk
0:03:02]} 7. exf6 {[%clk 0:03:03.9]} 7... Qxf6 {[%clk 0:03:02.5]} 8. dxc3 {[%clk
0:03:04.5]} 8... Bc5 {[%clk 0:03:03.1]} 9. O-O {[%clk 0:03:05.2]} 9... O-O
{[%clk 0:03:03.1]} 10. Bd3 {[%clk 0:03:05.7]} 10... d6 {[%clk 0:02:57.9]} 11.
Qd2 {[%clk 0:03:06]} 11... Re8 {[%clk 0:02:54.3]} 12. a4 {[%clk 0:03:05.4]}
12... a5 {[%clk 0:02:52.6]} 13. Qf4 {[%clk 0:03:03.4]} 13... Qxf4 {[%clk
0:02:52]} 14. Bxf4 {[%clk 0:03:04.3]} 14... Bd7 {[%clk 0:02:51.7]} 15. Rfe1
{[%clk 0:03:04.6]} 15... Rxe1+ {[%clk 0:02:48.3]} 16. Rxe1 {[%clk 0:03:04.9]}
16... Bxa4 {[%clk 0:02:39.1]} 17. Re7 {[%clk 0:02:36]} 17... Re8 {[%clk
0:02:30.1]} 18. Rxc7 {[%clk 0:02:07.4]} 18... Re1+ {[%clk 0:02:29.4]} 19. Bf1
{[%clk 0:02:08.1]} 19... g5 {[%clk 0:02:27.3]} 20. Bd2 {[%clk 0:01:32.4]} 20...
Rd1 {[%clk 0:02:26.8]} 21. Bxg5 {[%clk 0:01:31.7]} 21... Bb5 {[%clk 0:02:25.2]}
22. h4 {[%clk 0:01:26.7]} 22... Rxf1+ {[%clk 0:02:21.4]} 23. Kh2 {[%clk
0:01:27.3]} 23... Kg7 {[%clk 0:01:50.6]} 24. Rxb7 {[%clk 0:01:25.4]} 24... Bc6
{[%clk 0:01:50.9]} 25. Rc7 {[%clk 0:01:25.8]} 25... Bd5 {[%clk 0:01:47.8]} 26.
f3 {[%clk 0:01:21.8]} 26... Rf2 {[%clk 0:01:47.1]} 27. b4 {[%clk 0:01:19.9]}
27... axb4 {[%clk 0:01:43.3]} 28. cxb4 {[%clk 0:01:20.8]} 28... Bxb4 {[%clk
0:01:37.3]} 29. c4 {[%clk 0:01:17.9]} 29... Be6 {[%clk 0:01:27.6]} 30. Be3
{[%clk 0:01:17.6]} 30... Rc2 {[%clk 0:01:27]} 31. Bd4+ {[%clk 0:01:12.3]} 31...
Kg6 {[%clk 0:01:27.2]} 32. Rc8 {[%clk 0:01:10.1]} 32... Bxc8 {[%clk 0:01:26.7]}
0-1

[Event "Late-Titled-Tuesday-Blitz-March-26-2024"]
[Site "Chess.com"]
[Date "2024.03.26"]
[Round "7"]
[White "bilelou"]
[Black "HelenaWalker2912"]
[Result "1-0"]
[WhiteElo "2707"]
[BlackElo "2502"]
[TimeControl "180+1"]
[EndTime "15:15:55 PDT"]
[Termination "bilelou won by resignation"]

1. e4 {[%clk 0:02:55.8]} 1... c6 {[%clk 0:03:00]} 2. d4 {[%clk 0:02:53.9]} 2...
d5 {[%clk 0:03:00.3]} 3. f3 {[%clk 0:02:54.8]} 3... e6 {[%clk 0:03:00.3]} 4. Nc3
{[%clk 0:02:53]} 4... Qb6 {[%clk 0:03:00.4]} 5. Nge2 {[%clk 0:02:48.1]} 5... Nf6
{[%clk 0:02:47.2]} 6. a3 {[%clk 0:02:42.4]} 6... Be7 {[%clk 0:02:44.7]} 7. h4
{[%clk 0:02:41.1]} 7... c5 {[%clk 0:02:28.8]} 8. exd5 {[%clk 0:02:35.1]} 8...
exd5 {[%clk 0:02:28.1]} 9. Be3 {[%clk 0:02:34.9]} 9... Nc6 {[%clk 0:01:53.6]}
10. dxc5 {[%clk 0:02:28.7]} 10... Bxc5 {[%clk 0:01:54.5]} 11. Na4 {[%clk
0:02:25.5]} 11... Qa5+ {[%clk 0:01:54.3]} 12. b4 {[%clk 0:02:25.9]} 12... Qxa4
{[%clk 0:01:45]} 13. Bxc5 {[%clk 0:02:25]} 13... Bf5 {[%clk 0:01:33.7]} 14. Ra2
{[%clk 0:02:10.5]} 14... Ne5 {[%clk 0:01:05.3]} 15. Nd4 {[%clk 0:01:41.4]} 15...
Qd7 {[%clk 0:01:05.2]} 16. Bb5 {[%clk 0:01:15.2]} 16... Nc6 {[%clk 0:01:05.4]}
17. O-O {[%clk 0:01:15.5]} 17... O-O-O {[%clk 0:01:02.4]} 18. Bxa7 {[%clk
0:01:10.6]} 18... Rhe8 {[%clk 0:00:47.3]} 19. Bb6 {[%clk 0:01:08]} 19... Qd6
{[%clk 0:00:42.8]} 1-0

[Event "Late-Titled-Tuesday-Blitz-March-26-2024"]
[Site "Chess.com"]
[Date "2024.03.26"]
[Round "7"]
[White "Defenstrator"]
[Black "Blackwhite017"]
[Result "0-1"]
[WhiteElo "2457"]
[BlackElo "2105"]
[TimeControl "180+1"]
[EndTime "15:16:16 PDT"]
[Termination "Blackwhite017 won by checkmate"]

1. f3 {[%clk 0:03:00.6]} 1... b6 {[%clk 0:02:56.4]} 2. c3 {[%clk 0:03:00.3]}
2... Bb7 {[%clk 0:02:56.5]} 3. Kf2 {[%clk 0:03:00.7]} 3... d5 {[%clk 0:02:55.6]}
4. Ke3 {[%clk 0:03:01]} 4... d4+ {[%clk 0:02:43.9]} 5. cxd4 {[%clk 0:03:01]}
5... Nc6 {[%clk 0:02:44.6]} 6. Kf2 {[%clk 0:02:59.4]} 6... Nxd4 {[%clk
0:02:39.5]} 7. e3 {[%clk 0:02:59.6]} 7... Nc6 {[%clk 0:02:37.9]} 8. d4 {[%clk
0:02:59.8]} 8... Nf6 {[%clk 0:02:29]} 9. Nc3 {[%clk 0:02:54.2]} 9... e6 {[%clk
0:02:26.4]} 10. Bb5 {[%clk 0:02:52.9]} 10... a6 {[%clk 0:02:24.4]} 11. Ba4
{[%clk 0:02:53]} 11... b5 {[%clk 0:02:19.4]} 12. Bb3 {[%clk 0:02:53.3]} 12...
Be7 {[%clk 0:02:18.5]} 13. Nge2 {[%clk 0:02:53.6]} 13... Na5 {[%clk 0:02:17.4]}
14. Bc2 {[%clk 0:02:51.2]} 14... O-O {[%clk 0:02:10.7]} 15. e4 {[%clk
0:02:51.8]} 15... c5 {[%clk 0:02:08.8]} 16. Be3 {[%clk 0:02:50]} 16... Nc4
{[%clk 0:02:04.8]} 17. Bc1 {[%clk 0:02:49.3]} 17... cxd4 {[%clk 0:02:03.3]} 18.
Nb1 {[%clk 0:02:37.8]} 18... Ne3 {[%clk 0:01:49.6]} 19. Bxe3 {[%clk 0:02:27.2]}
19... dxe3+ {[%clk 0:01:50.5]} 20. Kxe3 {[%clk 0:02:27.8]} 20... Qb6+ {[%clk
0:01:48.7]} 21. Kf4 {[%clk 0:02:23.1]} 21... e5+ {[%clk 0:01:11.7]} 22. Kg3
{[%clk 0:02:18.5]} 22... Nh5+ {[%clk 0:01:10.6]} 23. Kh3 {[%clk 0:02:19.2]}
23... Qe6+ {[%clk 0:00:58]} 24. g4 {[%clk 0:02:19.3]} 24... Rfd8 {[%clk
0:00:33.8]} 25. Qe1 {[%clk 0:02:14]} 25... Nf6 {[%clk 0:00:29.4]} 26. Kg2 {[%clk
0:02:09.8]} 26... Rac8 {[%clk 0:00:23.5]} 27. Bb3 {[%clk 0:02:06.9]} 27... Qb6
{[%clk 0:00:21.9]} 28. Nbc3 {[%clk 0:02:04]} 28... b4 {[%clk 0:00:20.1]} 29. Nd1
{[%clk 0:02:00.3]} 29... Nxe4 {[%clk 0:00:18.6]} 30. fxe4 {[%clk 0:01:56.4]}
30... Bxe4+ {[%clk 0:00:19.5]} 31. Kg3 {[%clk 0:01:56.3]} 31... Rd3+ {[%clk
0:00:17.8]} 32. Ne3 {[%clk 0:01:48.9]} 32... Qxe3# {[%clk 0:00:17.3]} 0-1

[Event "Late-Titled-Tuesday-Blitz-March-26-2024"]
[Site "Chess.com"]
[Date "2024.03.26"]
[Round "7"]
[White "GelmanAlexander"]
[Black "Rud_Makarian"]
[Result "0-1"]
[WhiteElo "2680"]
[BlackElo "3093"]
[TimeControl "180+1"]
[EndTime "15:16:31 PDT"]
[Termination "Rud_Makarian won by resignation"]

1. c4 {[%clk 0:03:00.9]} 1... g6 {[%clk 0:03:00.5]} 2. Nf3 {[%clk 0:03:00.7]}
2... Bg7 {[%clk 0:03:01]} 3. e3 {[%clk 0:03:01.2]} 3... d6 {[%clk 0:03:00.8]} 4.
Be2 {[%clk 0:03:01.2]} 4... e5 {[%clk 0:02:57.5]} 5. Nc3 {[%clk 0:03:01]} 5...
f5 {[%clk 0:02:56]} 6. d4 {[%clk 0:02:58.8]} 6... e4 {[%clk 0:02:55.9]} 7. Nd2
{[%clk 0:02:59]} 7... Nf6 {[%clk 0:02:52.4]} 8. b4 {[%clk 0:02:57.1]} 8... O-O
{[%clk 0:02:51.9]} 9. O-O {[%clk 0:02:57.3]} 9... Nc6 {[%clk 0:02:39.5]} 10. b5
{[%clk 0:02:55.9]} 10... Ne7 {[%clk 0:02:40]} 11. a4 {[%clk 0:02:56.4]} 11... g5
{[%clk 0:02:39.5]} 12. a5 {[%clk 0:02:55.4]} 12... g4 {[%clk 0:02:37.2]} 13. a6
{[%clk 0:02:54.9]} 13... b6 {[%clk 0:02:35.9]} 14. Ba3 {[%clk 0:02:25.6]} 14...
Be6 {[%clk 0:02:34.5]} 15. Rc1 {[%clk 0:02:25.5]} 15... Rf7 {[%clk 0:02:32.5]}
16. Kh1 {[%clk 0:02:17.6]} 16... h5 {[%clk 0:02:27.7]} 17. f3 {[%clk 0:02:17.2]}
17... exf3 {[%clk 0:02:27.5]} 18. gxf3 {[%clk 0:02:17.5]} 18... Ng6 {[%clk
0:02:18.6]} 19. Bd3 {[%clk 0:02:15.8]} 19... Nh7 {[%clk 0:02:13.7]} 20. Ne2
{[%clk 0:02:02.9]} 20... Qh4 {[%clk 0:02:10]} 21. Qe1 {[%clk 0:02:00.8]} 21...
Ng5 {[%clk 0:01:53.7]} 22. Qxh4 {[%clk 0:01:34.4]} 22... Nxh4 {[%clk 0:01:54.6]}
23. Nf4 {[%clk 0:01:35]} 23... Bd7 {[%clk 0:01:51.7]} 24. fxg4 {[%clk
0:01:22.2]} 24... hxg4 {[%clk 0:01:52.6]} 25. c5 {[%clk 0:01:21.8]} 25... dxc5
{[%clk 0:01:47.5]} 26. dxc5 {[%clk 0:01:07.3]} 26... Rd8 {[%clk 0:01:39.2]} 27.
Bc4 {[%clk 0:01:04.6]} 27... Bxb5 {[%clk 0:01:38.6]} 28. Rc2 {[%clk 0:00:41.4]}
28... Rxd2 {[%clk 0:01:25.5]} 29. Bxf7+ {[%clk 0:00:30.5]} 29... Nxf7 {[%clk
0:01:26.4]} 30. Rxd2 {[%clk 0:00:31.2]} 30... Bxf1 {[%clk 0:01:26.9]} 31. cxb6
{[%clk 0:00:31.5]} 31... cxb6 {[%clk 0:01:26.3]} 32. Rd7 {[%clk 0:00:31.2]}
32... Bxa6 {[%clk 0:01:24.2]} 33. Rxa7 {[%clk 0:00:31.1]} 33... Bb5 {[%clk
0:01:20.6]} 34. Rb7 {[%clk 0:00:30.6]} 34... Bc6+ {[%clk 0:01:20.9]} 0-1

[Event "Late-Titled-Tuesday-Blitz-March-26-2024"]
[Site "Chess.com"]
[Date "2024.03.26"]
[Round "7"]
[White "AnthonyWirig"]
[Black "ahkashefi2800"]
[Result "0-1"]
[WhiteElo "2815"]
[BlackElo "2618"]
[TimeControl "180+1"]
[EndTime "15:16:34 PDT"]
[Termination "ahkashefi2800 won by resignation"]

1. d4 {[%clk 0:03:00.9]} 1... d5 {[%clk 0:02:34]} 2. c4 {[%clk 0:02:59.6]} 2...
c6 {[%clk 0:02:33.6]} 3. Nf3 {[%clk 0:02:58.7]} 3... Nf6 {[%clk 0:02:33.5]} 4.
Qc2 {[%clk 0:02:58.6]} 4... g6 {[%clk 0:02:32.3]} 5. Bf4 {[%clk 0:02:56.2]} 5...
Bg7 {[%clk 0:02:32.3]} 6. cxd5 {[%clk 0:02:54.2]} 6... Nxd5 {[%clk 0:02:29.1]}
7. Be5 {[%clk 0:02:54]} 7... Nf6 {[%clk 0:02:27.7]} 8. Nc3 {[%clk 0:02:53.3]}
8... O-O {[%clk 0:02:26.8]} 9. e3 {[%clk 0:02:52.8]} 9... Bf5 {[%clk 0:02:24.8]}
10. Qb3 {[%clk 0:02:52.5]} 10... Qb6 {[%clk 0:02:24.6]} 11. Bc4 {[%clk
0:02:49.1]} 11... Nbd7 {[%clk 0:02:22.9]} 12. Bg3 {[%clk 0:02:46.2]} 12... Ne4
{[%clk 0:02:21.3]} 13. Nxe4 {[%clk 0:02:41.6]} 13... Bxe4 {[%clk 0:02:21.5]} 14.
O-O {[%clk 0:02:41.9]} 14... Bxf3 {[%clk 0:02:21]} 15. gxf3 {[%clk 0:02:41.7]}
15... Qxb3 {[%clk 0:02:20]} 16. axb3 {[%clk 0:02:40.3]} 16... a6 {[%clk
0:02:20]} 17. Ra5 {[%clk 0:02:30.3]} 17... e6 {[%clk 0:02:19.7]} 18. h4 {[%clk
0:02:29.9]} 18... h5 {[%clk 0:02:18.9]} 19. Kg2 {[%clk 0:02:23.3]} 19... Nb6
{[%clk 0:02:14.2]} 20. Rfa1 {[%clk 0:02:17.1]} 20... Rac8 {[%clk 0:02:01.8]} 21.
Kf1 {[%clk 0:01:57.6]} 21... Rfd8 {[%clk 0:01:55.7]} 22. Ke2 {[%clk 0:01:57.2]}
22... Bf6 {[%clk 0:01:55.8]} 23. Rc1 {[%clk 0:01:51.2]} 23... Nd5 {[%clk
0:01:55.6]} 24. Bd3 {[%clk 0:01:47.8]} 24... Ne7 {[%clk 0:01:52.5]} 25. Be4
{[%clk 0:01:37.5]} 25... Re8 {[%clk 0:01:52]} 26. Rac5 {[%clk 0:01:36.7]} 26...
Rcd8 {[%clk 0:01:51.5]} 27. Bc7 {[%clk 0:01:30.5]} 27... Rd7 {[%clk 0:01:51.4]}
28. Bg3 {[%clk 0:01:31.1]} 28... Nf5 {[%clk 0:01:51.5]} 29. Bxf5 {[%clk
0:01:30.7]} 29... exf5 {[%clk 0:01:51.7]} 30. Kf1 {[%clk 0:01:29.6]} 30... Be7
{[%clk 0:01:37.5]} 31. R5c4 {[%clk 0:01:28.7]} 31... Bd6 {[%clk 0:01:37.2]} 32.
Bxd6 {[%clk 0:01:26.1]} 32... Rxd6 {[%clk 0:01:37.4]} 33. f4 {[%clk 0:01:26.9]}
33... Rd5 {[%clk 0:01:37]} 34. Rc5 {[%clk 0:01:21.5]} 34... Red8 {[%clk
0:01:37.1]} 35. b4 {[%clk 0:01:21.4]} 35... Kg7 {[%clk 0:01:37]} 36. Ke2 {[%clk
0:01:21.5]} 36... Kf6 {[%clk 0:01:36.3]} 37. Kd3 {[%clk 0:01:18.5]} 37... Ke6
{[%clk 0:01:36.5]} 38. b3 {[%clk 0:01:16.1]} 38... Kf6 {[%clk 0:01:36.3]} 39.
Ke2 {[%clk 0:01:15.8]} 39... Ke6 {[%clk 0:01:36.4]} 40. Kd3 {[%clk 0:01:14.1]}
40... Kd6 {[%clk 0:01:36.1]} 41. Rxd5+ {[%clk 0:01:08.9]} 41... cxd5 {[%clk
0:01:35.9]} 42. b5 {[%clk 0:01:00.8]} 42... axb5 {[%clk 0:01:34.9]} 43. Rc5
{[%clk 0:00:56]} 43... b6 {[%clk 0:01:34.9]} 44. Rxb5 {[%clk 0:00:55.4]} 44...
Kc6 {[%clk 0:01:35.2]} 45. Rb4 {[%clk 0:00:55.7]} 45... b5 {[%clk 0:01:35.6]}
46. Kc2 {[%clk 0:00:55.1]} 46... Ra8 {[%clk 0:01:35.4]} 47. Kb2 {[%clk
0:00:55.5]} 47... Ra7 {[%clk 0:01:35.5]} 48. Kb1 {[%clk 0:00:55]} 48... Kb6
{[%clk 0:01:35.6]} 49. Kb2 {[%clk 0:00:55.3]} 49... Ra8 {[%clk 0:01:35.8]} 50.
Kb1 {[%clk 0:00:55.6]} 50... Ka5 {[%clk 0:01:36]} 0-1

[Event "Late-Titled-Tuesday-Blitz-March-26-2024"]
[Site "Chess.com"]
[Date "2024.03.26"]
[Round "7"]
[White "Houdinovic"]
[Black "ACollins05"]
[Result "1-0"]
[WhiteElo "2711"]
[BlackElo "2516"]
[TimeControl "180+1"]
[EndTime "15:16:34 PDT"]
[Termination "Houdinovic won by checkmate"]

1. Nf3 {[%clk 0:02:57.8]} 1... d5 {[%clk 0:02:59.3]} 2. d4 {[%clk 0:02:55.5]}
2... Nf6 {[%clk 0:02:59.1]} 3. c4 {[%clk 0:02:55.6]} 3... e6 {[%clk 0:02:59.3]}
4. Nc3 {[%clk 0:02:55.3]} 4... Be7 {[%clk 0:02:58.3]} 5. cxd5 {[%clk 0:02:53.1]}
5... exd5 {[%clk 0:02:58.2]} 6. Bf4 {[%clk 0:02:53.3]} 6... c6 {[%clk 0:02:55]}
7. h3 {[%clk 0:02:53]} 7... Bf5 {[%clk 0:02:54.8]} 8. e3 {[%clk 0:02:52.7]} 8...
O-O {[%clk 0:02:54]} 9. Bd3 {[%clk 0:02:52]} 9... Bxd3 {[%clk 0:02:53.9]} 10.
Qxd3 {[%clk 0:02:52.9]} 10... Nbd7 {[%clk 0:02:52.6]} 11. O-O {[%clk 0:02:52.9]}
11... Re8 {[%clk 0:02:53]} 12. Rab1 {[%clk 0:02:51.7]} 12... a5 {[%clk
0:02:53.2]} 13. Ne5 {[%clk 0:02:42.9]} 13... Nxe5 {[%clk 0:02:52.6]} 14. dxe5
{[%clk 0:02:42.2]} 14... Nd7 {[%clk 0:02:51.6]} 15. e4 {[%clk 0:02:42.3]} 15...
Nc5 {[%clk 0:02:50.9]} 16. Qe2 {[%clk 0:02:39.2]} 16... d4 {[%clk 0:02:34.1]}
17. Rbd1 {[%clk 0:02:38.9]} 17... Ne6 {[%clk 0:02:27.6]} 18. Bc1 {[%clk
0:02:35.2]} 18... b5 {[%clk 0:02:23.5]} 19. Kh1 {[%clk 0:02:29.9]} 19... Qb6
{[%clk 0:02:22.5]} 20. Nb1 {[%clk 0:02:15.9]} 20... c5 {[%clk 0:02:22.8]} 21. b3
{[%clk 0:02:08.5]} 21... a4 {[%clk 0:02:23]} 22. f4 {[%clk 0:02:07.1]} 22...
axb3 {[%clk 0:02:20.7]} 23. axb3 {[%clk 0:02:06.8]} 23... c4 {[%clk 0:02:19.7]}
24. f5 {[%clk 0:01:59.7]} 24... d3 {[%clk 0:02:19]} 25. Qg4 {[%clk 0:01:59.7]}
25... Ra1 {[%clk 0:01:56.3]} 26. Nc3 {[%clk 0:01:46.2]} 26... Kh8 {[%clk
0:01:25.5]} 27. Nd5 {[%clk 0:01:41.5]} 27... Qc6 {[%clk 0:01:15.3]} 28. bxc4
{[%clk 0:01:32.4]} 28... Nc5 {[%clk 0:01:10.2]} 29. cxb5 {[%clk 0:01:23.8]}
29... Qxb5 {[%clk 0:01:07.6]} 30. Nxe7 {[%clk 0:01:03]} 30... Qc4 {[%clk
0:00:57.1]} 31. f6 {[%clk 0:00:51.5]} 31... g6 {[%clk 0:00:49.2]} 32. Bh6 {[%clk
0:00:50.8]} 32... Rxd1 {[%clk 0:00:47.9]} 33. Bg7# {[%clk 0:00:50.3]} 1-0

[Event "Late-Titled-Tuesday-Blitz-March-26-2024"]
[Site "Chess.com"]
[Date "2024.03.26"]
[Round "7"]
[White "alexrustemov"]
[Black "TheCount"]
[Result "1-0"]
[WhiteElo "2921"]
[BlackElo "2661"]
[TimeControl "180+1"]
[EndTime "15:16:35 PDT"]
[Termination "alexrustemov won by resignation"]

1. d4 {[%clk 0:02:57]} 1... Nf6 {[%clk 0:03:00.5]} 2. c4 {[%clk 0:02:56.4]} 2...
g6 {[%clk 0:03:01.2]} 3. Nf3 {[%clk 0:02:56.4]} 3... Bg7 {[%clk 0:03:00.1]} 4.
g3 {[%clk 0:02:56.8]} 4... O-O {[%clk 0:02:59.8]} 5. Bg2 {[%clk 0:02:57.3]} 5...
d5 {[%clk 0:02:59.2]} 6. cxd5 {[%clk 0:02:57.2]} 6... Nxd5 {[%clk 0:02:59.8]} 7.
O-O {[%clk 0:02:57.8]} 7... Nb6 {[%clk 0:02:57.9]} 8. Nc3 {[%clk 0:02:58.1]}
8... Nc6 {[%clk 0:02:58.4]} 9. e3 {[%clk 0:02:58.4]} 9... Bd7 {[%clk 0:02:54.5]}
10. h3 {[%clk 0:02:55.9]} 10... e5 {[%clk 0:02:52.2]} 11. d5 {[%clk 0:02:51.8]}
11... Ne7 {[%clk 0:02:52.7]} 12. e4 {[%clk 0:02:51.4]} 12... c6 {[%clk
0:02:53.1]} 13. Bg5 {[%clk 0:02:33.7]} 13... h6 {[%clk 0:02:50.4]} 14. dxc6
{[%clk 0:02:23.8]} 14... bxc6 {[%clk 0:02:42]} 15. Bc1 {[%clk 0:02:16.6]} 15...
Qc8 {[%clk 0:02:35.5]} 16. Kh2 {[%clk 0:02:16]} 16... Rd8 {[%clk 0:02:35.5]} 17.
Qc2 {[%clk 0:02:16.3]} 17... Be6 {[%clk 0:02:30.9]} 18. b3 {[%clk 0:02:16]}
18... a5 {[%clk 0:02:30.4]} 19. Be3 {[%clk 0:02:15]} 19... Qa6 {[%clk
0:02:30.3]} 20. Rfd1 {[%clk 0:02:06]} 20... Rxd1 {[%clk 0:02:17.9]} 21. Rxd1
{[%clk 0:02:05.1]} 21... a4 {[%clk 0:02:18.5]} 22. Bf1 {[%clk 0:02:04.5]} 22...
axb3 {[%clk 0:02:16.2]} 23. axb3 {[%clk 0:02:04.7]} 23... Qb7 {[%clk 0:02:02]}
24. Nd2 {[%clk 0:02:00.4]} 24... Rd8 {[%clk 0:01:24.3]} 25. Na4 {[%clk
0:01:54.4]} 25... Nxa4 {[%clk 0:01:11.1]} 26. bxa4 {[%clk 0:01:55.3]} 26... Qb4
{[%clk 0:01:11.1]} 27. Rb1 {[%clk 0:01:51.1]} 27... Qa5 {[%clk 0:00:58.4]} 28.
Bc4 {[%clk 0:01:51.1]} 28... Bxc4 {[%clk 0:00:37.7]} 29. Nxc4 {[%clk 0:01:50.6]}
29... Qa6 {[%clk 0:00:38]} 30. Rb6 {[%clk 0:01:46.8]} 30... Qa8 {[%clk
0:00:32.6]} 31. Qb3 {[%clk 0:01:45.7]} 31... Nc8 {[%clk 0:00:22.9]} 32. Rb7
{[%clk 0:01:44.1]} 32... Rd3 {[%clk 0:00:13.5]} 33. Rb8 {[%clk 0:01:37.7]} 33...
Rxb3 {[%clk 0:00:06]} 34. Rxa8 {[%clk 0:01:37.5]} 1-0

[Event "Late-Titled-Tuesday-Blitz-March-26-2024"]
[Site "Chess.com"]
[Date "2024.03.26"]
[Round "7"]
[White "GothamChess"]
[Black "VD_coach"]
[Result "1-0"]
[WhiteElo "2668"]
[BlackElo "2502"]
[TimeControl "180+1"]
[EndTime "15:16:50 PDT"]
[Termination "GothamChess won by resignation"]

1. e4 {[%clk 0:03:00.9]} 1... c5 {[%clk 0:02:59.4]} 2. Nc3 {[%clk 0:02:57.6]}
2... d6 {[%clk 0:02:55.4]} 3. d4 {[%clk 0:02:57.2]} 3... cxd4 {[%clk 0:02:50.4]}
4. Qxd4 {[%clk 0:02:58.1]} 4... a6 {[%clk 0:02:47.8]} 5. b3 {[%clk 0:02:56]}
5... Nc6 {[%clk 0:02:46.8]} 6. Qd2 {[%clk 0:02:56.1]} 6... Nf6 {[%clk
0:02:46.1]} 7. Bb2 {[%clk 0:02:56.3]} 7... e6 {[%clk 0:02:46]} 8. f3 {[%clk
0:02:56.9]} 8... Be7 {[%clk 0:02:43.3]} 9. O-O-O {[%clk 0:02:56.9]} 9... O-O
{[%clk 0:02:43.5]} 10. Kb1 {[%clk 0:02:54.2]} 10... Qc7 {[%clk 0:02:33.8]} 11.
g4 {[%clk 0:02:54]} 11... Rd8 {[%clk 0:02:30.9]} 12. g5 {[%clk 0:02:49.1]} 12...
Nd7 {[%clk 0:02:23]} 13. f4 {[%clk 0:02:40.5]} 13... b5 {[%clk 0:02:19.5]} 14.
Nf3 {[%clk 0:02:31.6]} 14... Bb7 {[%clk 0:02:18.7]} 15. f5 {[%clk 0:02:29.6]}
15... Nde5 {[%clk 0:01:55.6]} 16. Be2 {[%clk 0:02:21.3]} 16... Nxf3 {[%clk
0:01:53.4]} 17. Bxf3 {[%clk 0:02:21.4]} 17... Ne5 {[%clk 0:01:53.7]} 18. Bg2
{[%clk 0:02:08.4]} 18... Rac8 {[%clk 0:01:53.5]} 19. f6 {[%clk 0:02:06.7]} 19...
Bf8 {[%clk 0:01:53.3]} 20. h4 {[%clk 0:01:50]} 20... b4 {[%clk 0:01:22.8]} 21.
Na4 {[%clk 0:01:44.4]} 21... d5 {[%clk 0:01:23.1]} 22. Qe2 {[%clk 0:01:35.3]}
22... dxe4 {[%clk 0:00:58.4]} 23. Bxe4 {[%clk 0:01:29.2]} 23... Bxe4 {[%clk
0:00:49]} 24. Qxe4 {[%clk 0:01:30.1]} 24... Rxd1+ {[%clk 0:00:33.2]} 25. Rxd1
{[%clk 0:01:29.5]} 25... Ng4 {[%clk 0:00:25.9]} 26. Qxg4 {[%clk 0:01:21.1]}
26... Qxc2+ {[%clk 0:00:25.8]} 27. Ka1 {[%clk 0:01:21.3]} 27... Qf2 {[%clk
0:00:14.2]} 28. fxg7 {[%clk 0:01:11.3]} 28... Bxg7 {[%clk 0:00:09.9]} 29. Bxg7
{[%clk 0:01:12.2]} 29... Kxg7 {[%clk 0:00:10.2]} 30. Qd4+ {[%clk 0:01:12]} 1-0

[Event "Late-Titled-Tuesday-Blitz-March-26-2024"]
[Site "Chess.com"]
[Date "2024.03.26"]
[Round "7"]
[White "Budisavljevic"]
[Black "ahmedkandiliii"]
[Result "1-0"]
[WhiteElo "2773"]
[BlackElo "2524"]
[TimeControl "180+1"]
[EndTime "15:16:53 PDT"]
[Termination "Budisavljevic won by checkmate"]

1. d4 {[%clk 0:03:00.9]} 1... Nf6 {[%clk 0:02:57.6]} 2. Bg5 {[%clk 0:02:59.3]}
2... Ne4 {[%clk 0:02:56.1]} 3. Bf4 {[%clk 0:02:58.6]} 3... d5 {[%clk 0:02:53.7]}
4. f3 {[%clk 0:02:55.3]} 4... Nf6 {[%clk 0:02:53]} 5. Nc3 {[%clk 0:02:53.1]}
5... e6 {[%clk 0:02:45.2]} 6. e4 {[%clk 0:02:50]} 6... dxe4 {[%clk 0:02:43.7]}
7. fxe4 {[%clk 0:02:50.9]} 7... Nxe4 {[%clk 0:02:42.2]} 8. Nxe4 {[%clk
0:02:47.2]} 8... Qh4+ {[%clk 0:02:37.7]} 9. g3 {[%clk 0:02:45.5]} 9... Qd8
{[%clk 0:02:35.3]} 10. Nf3 {[%clk 0:02:39.5]} 10... b6 {[%clk 0:02:30.9]} 11.
Bd3 {[%clk 0:02:38.3]} 11... Bb7 {[%clk 0:02:30.7]} 12. Qe2 {[%clk 0:02:37.7]}
12... Be7 {[%clk 0:02:28.5]} 13. O-O-O {[%clk 0:02:36]} 13... O-O {[%clk
0:02:27.5]} 14. h4 {[%clk 0:02:34]} 14... Qd5 {[%clk 0:02:19.3]} 15. Kb1 {[%clk
0:02:29.3]} 15... Nc6 {[%clk 0:02:06.6]} 16. Nc3 {[%clk 0:02:19.3]} 16... Qa5
{[%clk 0:02:00.4]} 17. Bxh7+ {[%clk 0:02:15.8]} 17... Kxh7 {[%clk 0:01:57.7]}
18. Ng5+ {[%clk 0:02:16.2]} 18... Kg8 {[%clk 0:01:51.3]} 19. Qh5 {[%clk
0:02:15.7]} 19... Qf5 {[%clk 0:01:49.7]} 20. g4 {[%clk 0:01:54.6]} 20... Qg6
{[%clk 0:01:46.2]} 21. Qxg6 {[%clk 0:01:54.9]} 21... fxg6 {[%clk 0:01:47.1]} 22.
Nxe6 {[%clk 0:01:55.8]} 22... Rf6 {[%clk 0:01:45.6]} 23. d5 {[%clk 0:01:55.6]}
23... Nd8 {[%clk 0:01:22.7]} 24. Bg5 {[%clk 0:01:33.4]} 24... Rxe6 {[%clk
0:01:05.4]} 25. dxe6 {[%clk 0:01:32.5]} 25... Bxg5 {[%clk 0:01:03.1]} 26. Rhe1
{[%clk 0:01:30.2]} 26... Be7 {[%clk 0:00:35.6]} 27. Rd7 {[%clk 0:01:29.6]} 27...
Kf8 {[%clk 0:00:24.4]} 28. Rf1+ {[%clk 0:01:29.3]} 28... Ke8 {[%clk 0:00:19.5]}
29. Rxc7 {[%clk 0:01:28.7]} 29... Rc8 {[%clk 0:00:16.1]} 30. Nb5 {[%clk
0:01:23.3]} 30... Bxh4 {[%clk 0:00:07.6]} 31. Nd6# {[%clk 0:01:19.6]} 1-0